fUST/lending_fUST_20250705
["ID","MTS","AMOUNT","RATE_DAILY","PERIOD"]
[369768941,1751722246821,-460.0,0.0002,2]
[369768942,1751722246832,-506.75,0.0002,2]
[369768943,1751722246842,-460.0,0.0002,2]
[369768944,1751722246852,-460.0,0.0002,2]
[369768945,1751722246863,-460.0,0.0002,2]
[369768946,1751722246873,-460.0,0.0002,2]
[369768947,1751722246883,-460.0,0.0002,2]
[369768948,1751722246894,-460.0,0.0002,2]
[369768949,1751722246904,-460.0,0.0002,2]
[369768950,1751722246916,-460.0,0.0002,2]
[369768951,1751722246926,-460.0,0.0002,2]
[369768952,1751722246936,-460.0,0.0002,2]
[369768954,1751722246946,-460.0,0.0002,2]
[369768956,1751722246956,-489.23,0.0002,2]
[369768957,1751722246966,-460.0,0.0002,2]
[369768958,1751722246976,-460.0,0.0002,2]
[369768959,1751722246987,-460.0,0.0002,2]
[369768961,1751722246997,-460.0,0.0002,2]
[369768963,1751722247007,-1288.64,0.0002,2]
[369768965,1751722247017,-460.0,0.0002,2]
[369768966,1751722247027,-460.0,0.0002,2]
[369768967,1751722247037,-460.0,0.0002,2]
[369768969,1751722247047,-460.0,0.0002,2]
[369768970,1751722247057,-460.0,0.0002,2]
[369768972,1751722247067,-460.0,0.0002,2]
[369768973,1751722247077,-460.0,0.0002,2]
[369768974,1751722247087,-460.0,0.0002,2]
[369768975,1751722247097,-460.0,0.0002,2]
[369768976,1751722247107,-460.0,0.0002,2]
[369768977,1751722247116,-460.0,0.0002,2]
[369768978,1751722247126,-460.0,0.0002,2]
[369768979,1751722247136,-460.0,0.0002,2]
[369768980,1751722247147,-572.67,0.0002,2]
[369768981,1751722247156,-460.0,0.0002,2]
[369768982,1751722247166,-460.0,0.0002,2]
[369768983,1751722247176,-460.0,0.0002,2]
[369768984,1751722247186,-620.48,0.0002,2]
[369768985,1751722247196,-519.51,0.0002,2]
[369768986,1751722247206,-460.0,0.0002,2]
[369768987,1751722247216,-460.0,0.0002,2]
[369768989,1751722247226,-460.0,0.0002,2]
[369768990,1751722247236,-1011.25,0.0002,2]
[369768991,1751722247246,-460.0,0.0002,2]
[369768992,1751722247256,-460.0,0.0002,2]
[369768993,1751722247266,-460.0,0.0002,2]
[369768994,1751722247276,-460.0,0.0002,2]
[369768995,1751722247286,-460.0,0.0002,2]
[369768996,1751722247296,-466.24631743,0.0002,2]
[369768997,1751722247307,-460.0,0.0002,2]
[369768998,1751722247317,-460.0,0.0002,2]
[369768999,1751722247327,-460.0,0.0002,2]
[369769000,1751722247337,-460.0,0.0002,2]
[369769001,1751722247348,-460.0,0.0002,2]
[369769002,1751722247358,-460.0,0.0002,2]
[369769003,1751722247369,-917.61,0.0002,2]
[369769004,1751722247379,-607.25,0.0002,2]
[369769005,1751722247389,-460.0,0.0002,2]
[369769006,1751722247400,-614.63,0.0002,2]
[369769007,1751722247410,-460.0,0.0002,2]
[369769008,1751722247420,-460.0,0.0002,2]
[369769009,1751722247431,-541.09,0.0002,2]
[369769010,1751722247442,-460.0,0.0002,2]
[369769011,1751722247452,-460.0,0.0002,2]
[369769012,1751722247462,-460.0,0.0002,2]
[369769013,1751722247472,-460.0,0.0002,2]
[369769014,1751722247482,-712.65,0.0002,2]
[369769015,1751722247492,-460.0,0.0002,2]
[369769016,1751722247502,-460.0,0.0002,2]
[369769017,1751722247512,-460.0,0.0002,2]
[369769018,1751722247528,-460.0,0.0002,2]
[369769019,1751722247541,-460.0,0.0002,2]
[369769020,1751722247551,-460.0,0.0002,2]
[369769021,1751722247561,-427.82158905,0.0002,2]
[369769022,1751722247571,-527.23,0.0002,2]
[369769023,1751722247581,-739.98,0.0002,2]
[369769024,1751722247591,-485.28,0.0002,2]
[369769025,1751722247601,-485.28,0.0002,2]
[369769026,1751722247612,-569.89,0.0002,2]
[369769027,1751722247622,-460.0,0.0002,2]
[369769028,1751722247632,-460.0,0.0002,2]
[369769029,1751722247642,-1763.37,0.0002,2]
[369769030,1751722247652,-460.0,0.0002,2]
[369769031,1751722247662,-460.0,0.0002,2]
[369769032,1751722247673,-817.0,0.0002,2]
[369769033,1751722247683,-976.22,0.0002,2]
[369769034,1751722247694,-460.0,0.0002,2]
[369769035,1751722247704,-460.0,0.0002,2]
[369769036,1751722247714,-460.0,0.0002,2]
[369769037,1751722247725,-1540.91,0.0002,2]
[369769038,1751722247735,-155.47757941,0.0002,2]
[369769039,1751722247746,-6246.0,0.0002,2]
[369769040,1751722247757,-2162.68,0.0002,2]
[369769041,1751722247768,-532.9,0.0002,2]
[369769042,1751722247778,-460.0,0.0002,2]
[369769043,1751722247789,-460.0,0.0002,2]
[369769044,1751722247801,-460.0,0.0002,2]
[369769045,1751722248000,-512.79,0.0002,2]
[369769046,1751722248011,-460.0,0.0002,2]
[369769047,1751722248020,-460.0,0.0002,2]
[369769048,1751722248030,-460.0,0.0002,2]
[369769049,1751722248039,-923.59,0.0002,2]
[369769050,1751722248048,-460.0,0.0002,2]
[369769051,1751722248057,-644.54,0.0002,2]
[369769052,1751722248067,-460.0,0.0002,2]
[369769053,1751722248076,-1436.31,0.0002,2]
[369769054,1751722248085,-788.88,0.0002,2]
[369769055,1751722248095,-515.17,0.0002,2]
[369769056,1751722248104,-460.0,0.0002,2]
[369769057,1751722248114,-460.0,0.0002,2]
[369769058,1751722248123,-1988.63,0.0002,2]
[369769059,1751722248132,-460.0,0.0002,2]
[369769060,1751722248141,-460.0,0.0002,2]
[369769061,1751722248150,-1388.11,0.0002,2]
[369769062,1751722248159,-460.0,0.0002,2]
[369769063,1751722248168,-460.0,0.0002,2]
[369769064,1751722248177,-460.0,0.0002,2]
[369769065,1751722248186,-460.0,0.0002,2]
[369769066,1751722248195,-463.27,0.0002,2]
[369769067,1751722248204,-8374.38,0.0002,2]
[369769068,1751722248213,-460.0,0.0002,2]
[369769069,1751722248222,-460.0,0.0002,2]
[369769070,1751722248232,-1198.59,0.0002,2]
[369769071,1751722248241,-460.0,0.0002,2]
[369769072,1751722248250,-776.97,0.0002,2]
[369769073,1751722248259,-579.55,0.0002,2]
[369769074,1751722248268,-504.44174301,0.0002,2]
[369769075,1751722248278,-460.0,0.0002,2]
[369769076,1751722248287,-460.0,0.0002,2]
[369769077,1751722248296,-460.0,0.0002,2]
[369769078,1751722248305,-460.0,0.0002,2]
[369769079,1751722248315,-555.84,0.0002,2]
[369769080,1751722248324,-460.0,0.0002,2]
[369769081,1751722248334,-2095.61,0.0002,2]
[369769082,1751722248343,-460.0,0.0002,2]
[369769083,1751722248352,-460.0,0.0002,2]
[369769084,1751722248362,-460.0,0.0002,2]
[369769085,1751722248371,-893.21,0.0002,2]
[369769086,1751722248381,-460.0,0.0002,2]
[369769087,1751722248390,-4007.99,0.0002,2]
[369769088,1751722248399,-460.0,0.0002,2]
[369769089,1751722248408,-5012.7,0.0002,2]
[369769090,1751722248418,-460.0,0.0002,2]
[369769091,1751722248428,-460.0,0.0002,2]
[369769092,1751722248439,-460.0,0.0002,2]
[369769093,1751722248448,-460.0,0.0002,2]
[369769094,1751722248458,-460.0,0.0002,2]
[369769095,1751722248468,-460.0,0.0002,2]
[369769096,1751722248477,-615.94,0.0002,2]
[369769097,1751722248487,-951.9,0.0002,2]
[369769098,1751722248497,-460.0,0.0002,2]
[369769099,1751722248507,-460.0,0.0002,2]
[369769100,1751722248517,-460.0,0.0002,2]
[369769101,1751722248530,-460.0,0.0002,2]
[369769102,1751722248540,-467.22786218,0.0002,2]
[369769103,1751722248549,-6536.21,0.0002,2]
[369769104,1751722248559,-460.0,0.0002,2]
[369769105,1751722248568,-460.0,0.0002,2]
[369769106,1751722248578,-389.0,0.0002,2]
[369769107,1751722248587,-537.54,0.0002,2]
[369769108,1751722248597,-11206.63168653,0.0002,2]
[369769109,1751722248606,-27899.09133437,0.0002,2]
[369769110,1751722248616,-460.0,0.0002,2]
[369769111,1751722248626,-1096.58,0.0002,2]
[369769112,1751722248635,-13648.31775029,0.0002,2]
[369769113,1751722248645,-1188.35559288,0.0002,2]
[369769114,1751722248655,-68888.81854906,0.0002,2]
[369769115,1751722248664,-361.8647402,0.0002,2]
[369769116,1751722248674,-460.0,0.0002,2]
[369769117,1751722248684,-40000.0,0.0002,2]
[369769118,1751722248694,-3477.91781966,0.0002,2]
[369769119,1751722248703,-1375.12,0.0002,2]
[369769120,1751722248713,-460.0,0.0002,2]
[369769121,1751722248723,-507.38002004,0.0002,2]
[369769122,1751722248732,-44474.16451103,0.0002,2]
[369769123,1751722248979,-2772.03668614,0.0002,2]
[369769124,1751722248991,-308.83950005,0.0002,2]
[369769125,1751722249003,-4008.94366302,0.0002,2]
[369769126,1751722249535,-460.0,0.00019178,2]
[369769127,1751722249545,-460.0,0.00019178,2]
[369769128,1751722249554,-460.0,0.00019178,2]
[369769129,1751722249563,-460.0,0.00019178,2]
[369769130,1751722249574,-460.0,0.00019452,2]
[369769131,1751722249584,-460.0,0.00019452,2]
[369769132,1751722249595,-460.0,0.00019452,2]
[369769133,1751722249604,-460.0,0.00019726,2]
[369769134,1751722249614,-460.0,0.00019726,2]
[369769135,1751722249623,-460.0,0.00019726,2]
[369769136,1751722249632,-500.0,0.00019973,2]
[369769137,1751722249642,-16142.90956029,0.0002,2]
[369769138,1751722249652,-482.57,0.0002,2]
[369769139,1751722249661,-941.2,0.0002,2]
[369769140,1751722249671,-541.54,0.0002,2]
[369769141,1751722249680,-1157.82,0.0002,2]
[369769142,1751722249690,-460.0,0.0002,2]
[369769143,1751722249699,-460.0,0.0002,2]
[369769144,1751722249709,-460.0,0.0002,2]
[369769145,1751722249719,-3019.38,0.0002,2]
[369769146,1751722249729,-1058.72,0.0002,2]
[369769147,1751722249739,-460.0,0.0002,2]
[369769148,1751722249748,-512.71,0.0002,2]
[369769149,1751722249758,-460.0,0.0002,2]
[369769150,1751722249768,-2032.43,0.0002,2]
[369769151,1751722249777,-2923.56,0.0002,2]
[369769152,1751722249787,-460.0,0.0002,2]
[369769153,1751722249796,-460.0,0.0002,2]
[369769154,1751722249805,-652.84,0.0002,2]
[369769155,1751722249815,-1505.83,0.0002,2]
[369769156,1751722249824,-540.09,0.0002,2]
[369769157,1751722249834,-641.04,0.0002,2]
[369769158,1751722249843,-1403.04,0.0002,2]
[369769159,1751722249853,-460.0,0.0002,2]
[369769160,1751722249863,-1468.55,0.0002,2]
[369769161,1751722249872,-460.0,0.0002,2]
[369769162,1751722249882,-460.0,0.0002,2]
[369769163,1751722249891,-3916.41,0.0002,2]
[369769164,1751722249901,-648.75,0.0002,2]
[369769165,1751722249910,-828.08,0.0002,2]
[369769166,1751722249919,-670.49,0.0002,2]
[369769167,1751722249929,-100.88755175,0.0002,2]
[369769168,1751722249941,-409.61244825,0.0002,2]
[369769169,1751722249951,-460.0,0.0002,2]
[369769170,1751722249960,-277.89415175,0.0002,2]
[369769171,1751722249972,-28.81577979,0.0002,2]
[369769172,1751722249981,-264.06173974,0.0002,2]
[369769173,1751722249990,-303.19552169,0.0002,2]
[369769174,1751722250002,-1112.15447831,0.0002,2]
[369769175,1751722250011,-1243.88,0.0002,2]
[369769176,1751722250021,-460.0,0.0002,2]
[369769177,1751722250030,-618.51,0.0002,2]
[369769178,1751722250040,-460.0,0.0002,2]
[369769179,1751722250050,-3935.55,0.0002,2]
[369769180,1751722250059,-667.64,0.0002,2]
[369769181,1751722250069,-460.0,0.0002,2]
[369769182,1751722250078,-460.0,0.0002,2]
[369769183,1751722250087,-460.0,0.0002,2]
[369769184,1751722250147,-4000.0,0.0002,4]
[369769185,1751722250157,-390.11694902,0.0002,2]
[369769186,1751722250169,-642.44682592,0.0002,2]
[369769187,1751722250181,-30.30622506,0.0002,2]
[369769188,1751722250191,-507.36,0.0002,2]
[369769189,1751722250200,-460.0,0.0002,2]
[369769190,1751722250210,-257.58502452,0.0002,2]
[369769191,1751722250221,-3034.62497548,0.0002,2]
[369769192,1751722250230,-460.0,0.0002,2]
[369769193,1751722250240,-37.75534903,0.0002,2]
[369769194,1751722250281,-460.0,0.00019178,2]
[369769195,1751722250291,-422.24465097,0.0002,2]
[369769196,1751722250300,-513.85,0.0002,2]
[369769197,1751722250311,-460.0,0.0002,2]
[369769198,1751722250319,-460.0,0.0002,2]
[369769199,1751722250329,-460.0,0.0002,2]
[369769200,1751722250338,-366.5862663,0.000201,2]
[369769201,1751722250347,-232.17415268,0.00020107,2]
[369769202,1751722250356,-253.57316662,0.00020173,2]
[369769203,1751722250365,-218.538117,0.00020187,2]
[369769204,1751722250375,-151.0,0.000202,4]
[369769205,1751722250385,-500.0,0.00020268,2]
[369769206,1751722250395,-1500.0,0.00020268,2]
[369769207,1751722250404,-1500.0,0.00020268,2]
[369769208,1751722250414,-460.0,0.00020273,2]
[369769209,1751722250423,-460.0,0.00020273,2]
[369769210,1751722250434,-460.0,0.00020273,2]
[369769211,1751722250443,-460.0,0.00020273,2]
[369769212,1751722250453,-395.81107508,0.00020273,2]
[369769213,1751722250462,-460.0,0.00020273,2]
[369769214,1751722250471,-461.32309673,0.00020273,2]
[369769215,1751722250479,-460.0,0.00020273,2]
[369769216,1751722250488,-247.38014881,0.00020273,2]
[369769217,1751722250498,-460.0,0.00020273,2]
[369769218,1751722250507,-475.96,0.00020273,2]
[369769219,1751722250517,-460.0,0.00020273,2]
[369769220,1751722250529,-460.0,0.00020273,2]
[369769221,1751722250538,-460.0,0.00020273,2]
[369769222,1751722250548,-460.0,0.00020273,2]
[369769223,1751722250557,-460.0,0.00020273,2]
[369769224,1751722250567,-520.9,0.00020273,2]
[369769225,1751722250577,-460.0,0.00020273,2]
[369769226,1751722250586,-460.0,0.00020273,2]
[369769227,1751722250595,-460.0,0.00020273,2]
[369769228,1751722250604,-460.0,0.00020273,2]
[369769229,1751722250613,-460.0,0.00020273,2]
[369769230,1751722250622,-460.0,0.00020273,2]
[369769231,1751722250632,-460.0,0.00020273,2]
[369769232,1751722250642,-460.0,0.00020273,2]
[369769233,1751722250651,-737.14,0.00020273,2]
[369769234,1751722250660,-460.0,0.00020273,2]
[369769235,1751722250670,-460.0,0.00020273,2]
[369769236,1751722250680,-460.0,0.00020273,2]
[369769237,1751722250690,-506.75,0.00020273,2]
[369769238,1751722250700,-460.0,0.00020273,2]
[369769239,1751722250709,-460.0,0.00020273,2]
[369769240,1751722250719,-460.0,0.00020273,2]
[369769241,1751722250729,-460.0,0.00020273,2]
[369769242,1751722250741,-460.0,0.00020273,2]
[369769243,1751722250752,-465.06935796,0.00020273,2]
[369769244,1751722250762,-460.0,0.00020273,2]
[369769245,1751722250772,-460.0,0.00020273,2]
[369769246,1751722250781,-460.0,0.00020273,2]
[369769247,1751722250791,-460.0,0.00020273,2]
[369769248,1751722250800,-460.0,0.00020273,2]
[369769249,1751722250811,-489.23,0.00020273,2]
[369769250,1751722250820,-460.0,0.00020273,2]
[369769251,1751722250829,-460.0,0.00020273,2]
[369769252,1751722250839,-604.54658902,0.00020273,2]
[369769253,1751722250849,-1288.64,0.00020273,2]
[369769254,1751722250859,-460.0,0.00020273,2]
[369769255,1751722250869,-460.0,0.00020273,2]
[369769256,1751722250879,-460.0,0.00020273,2]
[369769257,1751722250889,-460.0,0.00020273,2]
[369769258,1751722250899,-460.0,0.00020273,2]
[369769259,1751722250909,-460.0,0.00020273,2]
[369769260,1751722250919,-460.0,0.00020273,2]
[369769261,1751722250928,-460.0,0.00020273,2]
[369769262,1751722250938,-460.0,0.00020273,2]
[369769263,1751722250948,-480.95426059,0.00020273,2]
[369769264,1751722250958,-200.01418152,0.00020273,2]
[369769265,1751722250968,-460.0,0.00020273,2]
[369769266,1751722250977,-460.0,0.00020273,2]
[369769267,1751722250987,-572.67,0.00020273,2]
[369769268,1751722250997,-460.0,0.00020273,2]
[369769269,1751722251007,-460.0,0.00020273,2]
[369769270,1751722251017,-460.0,0.00020273,2]
[369769271,1751722251027,-620.48,0.00020273,2]
[369769272,1751722251037,-519.51,0.00020273,2]
[369769273,1751722251047,-460.0,0.00020273,2]
[369769274,1751722251057,-460.0,0.00020273,2]
[369769275,1751722251068,-460.0,0.00020273,2]
[369769276,1751722251077,-1011.25,0.00020273,2]
[369769277,1751722251086,-460.0,0.00020273,2]
[369769278,1751722251095,-460.0,0.00020273,2]
[369769279,1751722251105,-460.0,0.00020273,2]
[369769280,1751722251114,-460.0,0.00020273,2]
[369769281,1751722251123,-460.0,0.00020273,2]
[369769282,1751722251134,-460.0,0.00020273,2]
[369769283,1751722251144,-460.0,0.00020273,2]
[369769284,1751722251155,-460.0,0.00020273,2]
[369769285,1751722251164,-460.0,0.00020273,2]
[369769286,1751722251174,-460.0,0.00020273,2]
[369769287,1751722251185,-460.0,0.00020273,2]
[369769288,1751722251194,-917.61,0.00020273,2]
[369769289,1751722251205,-607.25,0.00020273,2]
[369769290,1751722251215,-614.63,0.00020273,2]
[369769291,1751722251226,-460.0,0.00020273,2]
[369769292,1751722251237,-460.0,0.00020273,2]
[369769293,1751722251247,-541.09,0.00020273,2]
[369769294,1751722251258,-460.0,0.00020273,2]
[369769295,1751722251269,-163.12363446,0.00020273,2]
[369769296,1751722251279,-460.0,0.00020273,2]
[369769297,1751722251290,-4405.57,0.00020273,2]
[369769298,1751722251301,-460.0,0.00020273,2]
[369769299,1751722251312,-712.65,0.00020273,2]
[369769300,1751722251323,-460.0,0.00020273,2]
[369769301,1751722251333,-460.0,0.00020273,2]
[369769302,1751722251343,-460.0,0.00020273,2]
[369769303,1751722251353,-460.0,0.00020273,2]
[369769304,1751722251363,-350.08733817,0.00020273,2]
[369769305,1751722251373,-527.23,0.00020273,2]
[369769306,1751722251385,-739.98,0.00020273,2]
[369769307,1751722251395,-485.28,0.00020273,2]
[369769308,1751722251405,-485.28,0.00020273,2]
[369769309,1751722251417,-2002.42,0.00020273,2]
[369769310,1751722251427,-569.89,0.00020273,2]
[369769311,1751722251438,-372.91149484,0.00020273,2]
[369769312,1751722251448,-1763.37,0.00020273,2]
[369769313,1751722251458,-460.0,0.00020273,2]
[369769314,1751722251467,-3593.24,0.00020273,2]
[369769315,1751722251477,-460.0,0.00020273,2]
[369769316,1751722251488,-460.0,0.00020273,2]
[369769317,1751722251498,-628.33,0.00020273,2]
[369769318,1751722251508,-817.0,0.00020273,2]
[369769319,1751722251520,-976.22,0.00020273,2]
[369769320,1751722251533,-460.0,0.00020273,2]
[369769321,1751722251544,-460.0,0.00020273,2]
[369769322,1751722251554,-460.0,0.00020273,2]
[369769323,1751722251566,-460.0,0.00020273,2]
[369769324,1751722251576,-1540.91,0.00020273,2]
[369769325,1751722251587,-6246.0,0.00020273,2]
[369769326,1751722251598,-2162.68,0.00020273,2]
[369769327,1751722251609,-532.9,0.00020273,2]
[369769328,1751722251619,-460.0,0.00020273,2]
[369769329,1751722251630,-460.0,0.00020273,2]
[369769330,1751722251640,-460.0,0.00020273,2]
[369769331,1751722251650,-512.79,0.00020273,2]
[369769332,1751722251661,-460.0,0.00020273,2]
[369769333,1751722251672,-460.0,0.00020273,2]
[369769334,1751722251682,-8650.73,0.00020273,2]
[369769335,1751722251693,-923.59,0.00020273,2]
[369769336,1751722251704,-460.0,0.00020273,2]
[369769337,1751722251714,-644.54,0.00020273,2]
[369769338,1751722251725,-460.0,0.00020273,2]
[369769339,1751722251735,-1436.31,0.00020273,2]
[369769340,1751722251746,-788.88,0.00020273,2]
[369769341,1751722251756,-515.17,0.00020273,2]
[369769342,1751722251766,-460.0,0.00020273,2]
[369769343,1751722251777,-460.0,0.00020273,2]
[369769344,1751722251787,-2109.23,0.00020273,2]
[369769345,1751722251797,-1988.63,0.00020273,2]
[369769346,1751722251807,-460.0,0.00020273,2]
[369769347,1751722251817,-460.0,0.00020273,2]
[369769348,1751722251828,-1388.11,0.00020273,2]
[369769349,1751722251839,-460.0,0.00020273,2]
[369769350,1751722251849,-460.0,0.00020273,2]
[369769351,1751722251861,-460.0,0.00020273,2]
[369769352,1751722251871,-460.0,0.00020273,2]
[369769353,1751722251881,-463.27,0.00020273,2]
[369769354,1751722251891,-8374.38,0.00020273,2]
[369769355,1751722251902,-460.0,0.00020273,2]
[369769356,1751722251912,-2962.19,0.00020273,2]
[369769357,1751722251924,-460.0,0.00020273,2]
[369769358,1751722251934,-1198.59,0.00020273,2]
[369769359,1751722251945,-460.0,0.00020273,2]
[369769360,1751722251955,-460.0,0.00020273,2]
[369769361,1751722251965,-776.97,0.00020273,2]
[369769362,1751722251975,-579.55,0.00020273,2]
[369769363,1751722251985,-460.0,0.00020273,2]
[369769364,1751722251995,-460.0,0.00020273,2]
[369769365,1751722252009,-460.0,0.00020273,2]
[369769366,1751722252022,-460.0,0.00020273,2]
[369769367,1751722252034,-460.0,0.00020273,2]
[369769368,1751722252048,-555.84,0.00020273,2]
[369769369,1751722252060,-460.0,0.00020273,2]
[369769370,1751722252070,-2095.61,0.00020273,2]
[369769371,1751722252083,-460.0,0.00020273,2]
[369769372,1751722252097,-460.0,0.00020273,2]
[369769373,1751722252109,-460.0,0.00020273,2]
[369769374,1751722252121,-893.21,0.00020273,2]
[369769375,1751722252133,-1898.56,0.00020273,2]
[369769376,1751722252147,-460.0,0.00020273,2]
[369769377,1751722252160,-4007.99,0.00020273,2]
[369769378,1751722252173,-460.0,0.00020273,2]
[369769379,1751722252184,-5012.7,0.00020273,2]
[369769380,1751722252196,-460.0,0.00020273,2]
[369769381,1751722252209,-460.0,0.00020273,2]
[369769382,1751722252220,-460.0,0.00020273,2]
[369769383,1751722252233,-460.0,0.00020273,2]
[369769384,1751722252245,-460.0,0.00020273,2]
[369769385,1751722252257,-460.0,0.00020273,2]
[369769386,1751722252270,-615.94,0.00020273,2]
[369769387,1751722252281,-951.9,0.00020273,2]
[369769388,1751722252293,-460.0,0.00020273,2]
[369769389,1751722252306,-460.0,0.00020273,2]
[369769390,1751722252317,-460.0,0.00020273,2]
[369769391,1751722252330,-460.0,0.00020273,2]
[369769392,1751722252349,-460.0,0.00020273,2]
[369769393,1751722252361,-460.0,0.00020273,2]
[369769394,1751722252372,-537.54,0.00020273,2]
[369769395,1751722252385,-6536.21,0.00020273,2]
[369769396,1751722252398,-460.0,0.00020273,2]
[369769397,1751722252410,-1096.58,0.00020273,2]
[369769398,1751722252424,-460.0,0.00020273,2]
[369769399,1751722252438,-1375.12,0.00020273,2]
[369769400,1751722252449,-460.0,0.00020273,2]
[369769401,1751722252459,-482.57,0.00020273,2]
[369769402,1751722252469,-941.2,0.00020273,2]
[369769403,1751722252479,-541.54,0.00020273,2]
[369769404,1751722252492,-1263.3,0.00020273,2]
[369769405,1751722252506,-1157.82,0.00020273,2]
[369769406,1751722252519,-460.0,0.00020273,2]
[369769407,1751722252529,-460.0,0.00020273,2]
[369769408,1751722252540,-460.0,0.00020273,2]
[369769409,1751722252550,-3019.38,0.00020273,2]
[369769410,1751722252562,-1058.72,0.00020273,2]
[369769411,1751722252575,-460.0,0.00020273,2]
[369769412,1751722252588,-512.71,0.00020273,2]
[369769413,1751722252599,-460.0,0.00020273,2]
[369769414,1751722252610,-2032.43,0.00020273,2]
[369769415,1751722252620,-585.28,0.00020273,2]
[369769416,1751722252631,-2923.56,0.00020273,2]
[369769417,1751722252642,-460.0,0.00020273,2]
[369769418,1751722252653,-460.0,0.00020273,2]
[369769419,1751722252664,-652.84,0.00020273,2]
[369769420,1751722252675,-1505.83,0.00020273,2]
[369769421,1751722252687,-540.09,0.00020273,2]
[369769422,1751722252698,-641.04,0.00020273,2]
[369769423,1751722252709,-1403.04,0.00020273,2]
[369769424,1751722252721,-460.0,0.00020273,2]
[369769425,1751722252731,-1468.55,0.00020273,2]
[369769426,1751722252745,-460.0,0.00020273,2]
[369769427,1751722252756,-460.0,0.00020273,2]
[369769428,1751722252767,-3916.41,0.00020273,2]
[369769429,1751722252779,-648.75,0.00020273,2]
[369769430,1751722252790,-828.08,0.00020273,2]
[369769431,1751722252802,-670.49,0.00020273,2]
[369769432,1751722252813,-510.5,0.00020273,2]
[369769433,1751722252824,-460.0,0.00020273,2]
[369769434,1751722252836,-1415.35,0.00020273,2]
[369769435,1751722252847,-1243.88,0.00020273,2]
[369769436,1751722252858,-460.0,0.00020273,2]
[369769437,1751722252871,-151.0,0.00020273,2]
[369769438,1751722252883,-618.51,0.00020273,2]
[369769439,1751722252894,-460.0,0.00020273,2]
[369769440,1751722252905,-3935.55,0.00020273,2]
[369769441,1751722252916,-667.64,0.00020273,2]
[369769442,1751722252927,-460.0,0.00020273,2]
[369769443,1751722252937,-460.0,0.00020273,2]
[369769444,1751722252948,-151.0,0.00020273,2]
[369769445,1751722252960,-1062.87,0.00020273,2]
[369769446,1751722252971,-507.36,0.00020273,2]
[369769447,1751722252982,-460.0,0.00020273,2]
[369769448,1751722252996,-3292.21,0.00020273,2]